fUST/lending_fUST_20241230
["ID","MTS","AMOUNT","RATE_DAILY","PERIOD"]
[347102494,1735499438928,-500.0,0.00019826,2]
[347102495,1735499438937,-500.0,0.00019826,2]
[347102496,1735499438946,-500.0,0.00019826,2]
[347102497,1735499438955,-500.0,0.00019826,2]
[347102498,1735499438964,-500.0,0.00019826,2]
[347102499,1735499438974,-500.0,0.00019826,2]
[347102500,1735499438983,-500.0,0.00019826,2]
[347102501,1735499438992,-500.0,0.00019826,2]
[347102502,1735499439002,-501.98191268,0.00019826,2]
[347102503,1735499439011,-452.12130004,0.00019826,2]
[347102504,1735499439021,-500.0,0.00019826,2]
[347102505,1735499439030,-500.0,0.00019826,2]
[347102506,1735499439039,-500.0,0.00019826,2]
[347102507,1735499439048,-500.0,0.00019826,2]
[347102508,1735499439057,-500.0,0.00019826,2]
[347102509,1735499439066,-500.0,0.00019826,2]
[347102510,1735499439075,-500.0,0.00019826,2]
[347102511,1735499439085,-500.0,0.00019826,2]
[347102512,1735499439094,-500.0,0.00019826,2]
[347102513,1735499439103,-500.0,0.00019826,2]
[347102514,1735499439112,-500.0,0.00019826,2]
[347102515,1735499439121,-500.0,0.00019826,2]
[347102516,1735499439130,-500.0,0.00019826,2]
[347102517,1735499439139,-500.0,0.00019826,2]
[347102518,1735499439149,-500.0,0.00019826,2]
[347102519,1735499439158,-500.0,0.00019826,2]
[347102520,1735499439167,-500.0,0.00019826,2]
[347102521,1735499439176,-500.0,0.00019826,2]
[347102522,1735499439185,-500.0,0.00019826,2]
[347102523,1735499439194,-500.0,0.00019826,2]
[347102524,1735499439203,-500.0,0.00019826,2]
[347102525,1735499439212,-500.0,0.00019826,2]
[347102526,1735499439221,-500.0,0.00019826,2]
[347102527,1735499439231,-500.0,0.00019826,2]
[347102528,1735499439239,-500.0,0.00019826,2]
[347102529,1735499439251,-500.0,0.00019826,2]
[347102530,1735499439260,-500.0,0.00019826,2]
[347102531,1735499439269,-500.0,0.00019826,2]
[347102532,1735499439278,-500.0,0.00019826,2]
[347102533,1735499439288,-500.0,0.00019826,2]
[347102534,1735499439297,-500.0,0.00019826,2]
[347102535,1735499439306,-500.0,0.00019826,2]
[347102536,1735499439315,-500.0,0.00019826,2]
[347102537,1735499439324,-500.0,0.00019826,2]
[347102538,1735499439333,-500.0,0.00019826,2]
[347102539,1735499439342,-500.0,0.00019826,2]
[347102540,1735499439351,-500.0,0.00019826,2]
[347102541,1735499439360,-500.0,0.00019826,2]
[347102542,1735499439369,-500.0,0.00019826,2]
[347102543,1735499439378,-203.0072189,0.00019826,2]
[347102544,1735499439388,-500.0,0.00019826,2]
[347102545,1735499439397,-500.0,0.00019826,2]
[347102546,1735499439413,-500.0,0.00019826,2]
[347102547,1735499439429,-500.0,0.00019826,2]
[347102548,1735499439439,-500.0,0.00019826,2]
[347102549,1735499439448,-500.0,0.00019826,2]
[347102550,1735499439458,-1380.38,0.00019826,2]
[347102551,1735499439469,-500.0,0.00019826,2]
[347102552,1735499439478,-579.562,0.0001985,2]
[347102553,1735499439488,-353.0,0.0002,8]
[347102554,1735499439497,-306.0,0.00020055,2]
[347102555,1735499439509,-500.57639798,0.00020094,2]
[347102556,1735499439519,-500.0,0.00020098,2]
[347102557,1735499439528,-500.0,0.00020098,2]
[347102558,1735499439538,-500.0,0.00020099,2]
[347102559,1735499439548,-500.0,0.00020099,2]
[347102560,1735499439557,-500.0,0.00020099,2]
[347102561,1735499439566,-500.0,0.00020099,2]
[347102562,1735499439576,-500.0,0.00020099,2]
[347102563,1735499439585,-431.43679017,0.00020099,2]
[347102564,1735499439594,-500.0,0.00020099,2]
[347102565,1735499439604,-500.0,0.00020099,2]
[347102566,1735499439613,-504.37769987,0.000201,2]
[347102567,1735499439622,-500.0,0.000201,2]
[347102568,1735499439632,-500.0,0.000201,2]
[347102569,1735499439641,-500.0,0.000201,2]
[347102570,1735499439651,-500.0,0.000201,2]
[347102571,1735499439660,-500.0,0.000201,2]
[347102572,1735499439669,-500.0,0.000201,2]
[347102573,1735499439678,-464.87498039,0.000201,2]
[347102574,1735499439687,-500.0,0.000201,2]
[347102575,1735499439697,-500.0,0.000201,2]
[347102576,1735499439709,-500.0,0.000201,2]
[347102577,1735499439718,-500.0,0.000201,2]
[347102578,1735499439728,-332.6282561,0.000201,2]
[347102579,1735499439737,-500.0,0.000201,2]
[347102580,1735499439746,-500.0,0.000201,2]
[347102581,1735499439756,-500.0,0.000201,2]
[347102582,1735499439765,-500.0,0.000201,2]
[347102583,1735499439774,-500.0,0.000201,2]
[347102584,1735499439784,-500.0,0.000201,2]
[347102585,1735499439793,-500.0,0.000201,2]
[347102586,1735499439803,-500.0,0.000201,2]
[347102587,1735499439812,-500.0,0.000201,2]
[347102588,1735499439942,-500.0,0.000201,2]
[347102589,1735499439951,-500.0,0.000201,2]
[347102590,1735499439960,-500.0,0.000201,2]
[347102591,1735499439969,-500.0,0.000201,2]
[347102592,1735499439979,-500.0,0.000201,2]
[347102593,1735499439988,-500.0,0.000201,2]
[347102594,1735499439997,-614.25,0.000201,2]
[347102595,1735499440007,-500.0,0.000201,2]
[347102596,1735499440018,-500.0,0.000201,2]
[347102597,1735499440027,-500.0,0.000201,2]
[347102598,1735499440037,-500.0,0.000201,2]
[347102599,1735499440046,-472.7103995,0.000201,2]
[347102600,1735499440055,-365.62,0.000201,2]
[347102601,1735499440064,-176.25810038,0.000201,2]
[347102602,1735499440074,-500.0,0.000201,2]
[347102603,1735499440083,-500.0,0.000201,2]
[347102604,1735499440093,-500.0,0.000201,2]
[347102605,1735499440102,-500.0,0.000201,2]
[347102606,1735499440111,-1380.38,0.000201,2]
[347102607,1735499440121,-500.0,0.000201,2]
[347102608,1735499440130,-6796.40015924,0.00020111,2]
[347102609,1735499440141,-1496.14862517,0.00020207,3]
[347102610,1735499440151,-1496.14862517,0.00020207,3]
[347102611,1735499440160,-1496.14862517,0.00020207,3]
[347102612,1735499440169,-1496.14862517,0.00020207,3]
[347102613,1735499440178,-1496.14862517,0.00020207,3]
[347102614,1735499440188,-1496.14862517,0.00020207,3]
[347102615,1735499440197,-1496.14862517,0.00020207,3]
[347102616,1735499440206,-1496.14862517,0.00020207,3]
[347102617,1735499440216,-1496.14862517,0.00020207,3]
[347102618,1735499440225,-1496.14762517,0.00020207,3]
[347102619,1735499440234,-5164.75756255,0.00020207,3]
[347102620,1735499440243,-5164.75756255,0.00020207,3]
[347102621,1735499440252,-1200.0,0.00020216,2]
[347102622,1735499440261,-500.0,0.00020299,2]
[347102623,1735499440270,-505.55059981,0.00020299,2]
[347102624,1735499440279,-500.0,0.00020299,2]
[347102625,1735499440289,-500.0,0.00020299,2]
[347102626,1735499440298,-500.0,0.00020299,2]
[347102627,1735499440307,-500.0,0.00020299,2]
[347102628,1735499440316,-500.0,0.00020299,2]
[347102629,1735499440325,-500.0,0.00020373,2]
[347102630,1735499440334,-500.0,0.00020373,2]
[347102631,1735499440343,-500.0,0.00020373,2]
[347102632,1735499440353,-500.0,0.00020374,2]
[347102634,1735499440362,-500.0,0.00020374,2]
[347102636,1735499440371,-500.0,0.00020374,2]
[347102638,1735499440381,-500.0,0.00020374,2]
[347102640,1735499440391,-500.0,0.00020374,2]
[347102641,1735499440401,-500.0,0.00020374,2]
[347102643,1735499440409,-547.79,0.00020374,2]
[347102645,1735499440418,-500.0,0.00020374,2]
[347102647,1735499440432,-500.0,0.00020374,2]
[347102649,1735499440442,-500.0,0.00020374,2]
[347102651,1735499440450,-626.61517423,0.00020374,2]
[347102653,1735499440459,-500.0,0.00020374,2]
[347102655,1735499440469,-500.0,0.00020374,2]
[347102657,1735499440478,-500.0,0.00020374,2]
[347102659,1735499440487,-500.0,0.00020374,2]
[347102661,1735499440496,-500.0,0.00020374,2]
[347102663,1735499440506,-610.92,0.00020374,2]
[347102665,1735499440515,-500.0,0.00020374,2]
[347102667,1735499440524,-422.41771024,0.00020374,2]
[347102669,1735499440534,-192.27416235,0.00020374,2]
[347102671,1735499440543,-500.0,0.00020374,2]
[347102673,1735499440552,-500.0,0.00020374,2]
[347102675,1735499440561,-618.68,0.00020374,2]
[347102677,1735499440570,-1380.38,0.00020374,2]
[347102679,1735499440579,-400.0,0.00020447,2]
[347102681,1735499440588,-394.0,0.00020471,2]
[347102683,1735499440597,-167.79707,0.00020521,2]
[347102685,1735499440607,-500.0,0.00020573,2]
[347102687,1735499440616,-500.0,0.00020573,2]
[347102689,1735499440625,-500.0,0.00020573,2]
[347102691,1735499440634,-500.0,0.00020573,2]
[347102693,1735499440643,-578.15,0.00020573,2]
[347102695,1735499440652,-500.0,0.00020647,2]
[347102697,1735499440661,-500.0,0.00020647,2]
[347102699,1735499440670,-500.0,0.00020648,2]
[347102701,1735499440679,-500.0,0.00020648,2]
[347102703,1735499440688,-500.0,0.00020648,2]
[347102705,1735499440698,-500.0,0.00020648,2]
[347102707,1735499440707,-185.57495815,0.00020648,2]
[347102709,1735499440716,-564.94,0.00020648,2]
[347102711,1735499440724,-500.0,0.00020648,2]
[347102713,1735499440733,-384.6,0.00020648,2]
[347102715,1735499440742,-500.0,0.00020648,2]
[347102717,1735499440751,-500.0,0.00020648,2]
[347102719,1735499440760,-271.69,0.00020648,2]
[347102721,1735499440769,-1380.38,0.00020648,2]
[347102723,1735499440778,-167.5191321,0.00020678,2]
[347102725,1735499440788,-5164.75756255,0.00020787,3]
[347102727,1735499440797,-100000.0,0.000208,2]
[347102729,1735499440809,-490.4,0.000208,2]
[347102731,1735499440817,-2000.0,0.000208,2]
[347102733,1735499440826,-32545.41385628,0.000208,3]
[347102735,1735499440835,-1000.0,0.00020805,2]
[347102737,1735499440844,-500.0,0.00020847,2]
[347102739,1735499440854,-500.0,0.00020847,2]
[347102741,1735499440863,-500.0,0.00020847,2]
[347102743,1735499440872,-426.0,0.0002087,3]
[347102745,1735499440882,-500.0,0.00020871,2]
[347102747,1735499440891,-514.95453011,0.00020873,2]
[347102749,1735499440901,-150.24,0.00020887,10]
[347102751,1735499440910,-150.24,0.00020887,10]
[347102753,1735499440918,-150.24,0.00020887,10]
[347102755,1735499440927,-170.86488731,0.00020887,10]
[347102757,1735499440936,-150.24,0.00020887,10]
[347102759,1735499440945,-150.24,0.00020887,2]
[347102761,1735499440953,-172.86541984,0.00020887,10]
[347102763,1735499440963,-150.24,0.00020887,10]
[347102765,1735499440972,-201.43126826,0.00020887,10]
[347102767,1735499440981,-500.0,0.00020887,10]
[347102769,1735499440991,-500.0,0.00020887,10]
[347102771,1735499441000,-150.24,0.00020887,10]
[347102773,1735499441009,-150.24,0.00020887,2]
[347102775,1735499441019,-200.32409973,0.00020887,10]
[347102777,1735499441028,-150.24,0.00020887,10]
[347102779,1735499441038,-343995.4058861,0.000209,30]
[347103057,1735499443637,-500.0,0.00019826,2]
[347103059,1735499443646,-500.0,0.000201,2]
[347103061,1735499443656,-500.0,0.00020374,2]
[347103063,1735499443666,-500.0,0.00020374,2]
[347103065,1735499443674,-500.0,0.00020648,2]
[347103067,1735499443683,-500.0,0.00020648,2]
[347103069,1735499443693,-17097.9999937,0.000209,30]
[347104716,1735500631986,-196.2664726,0.00012636,2]
[347104718,1735500631996,-196.2664726,0.00012764,2]
[347104720,1735500632005,-400.0,0.00013973,2]
[347104722,1735500632014,-150.0,0.000156,2]
[347104724,1735500632024,-500.0,0.00018124,2]
[347104726,1735500632034,-500.0,0.00018124,2]
[347104728,1735500632043,-500.0,0.00018124,2]
[347104730,1735500632052,-24900.0,0.00018124,2]
[347104732,1735500632061,-420.04,0.00018182,2]
[347104734,1735500632071,-500.0,0.00018182,2]
[347104736,1735500632080,-500.0,0.00018182,2]
[347104738,1735500632089,-500.0,0.00018182,2]
[347104740,1735500632098,-69.33377017,0.00018182,2]
[347104742,1735500632110,-379.99308121,0.00018182,2]
[347105339,1735500637844,-179.12,0.00017943,2]
[347105341,1735500637854,-150.50620903,0.00018124,2]
[347105343,1735500637865,-28.61379097,0.00018124,2]
[347105345,1735500637875,-50.67314862,0.00018182,2]
[347105347,1735500637884,-450.42,0.00018182,2]
[347105349,1735500637893,-345.328,0.0001819,2]
[347105351,1735500637903,-500.0,0.00018456,2]
[347105353,1735500637912,-71.27169591,0.00018456,2]
[347105359,1735500637957,-304.2436927,0.00018456,2]
[347105362,1735500638026,-189.16631505,0.00018456,2]
[347105364,1735500638035,-500.0,0.00018456,2]
[347105366,1735500638044,-500.0,0.0001873,2]
[347105367,1735500638053,-500.0,0.0001873,2]
[347105368,1735500638062,-2055.39132974,0.000189,2]
[347105369,1735500638071,-271.42,0.00019004,2]
[347105370,1735500638080,-500.26015717,0.0001905,2]
[347105371,1735500638089,-2551.05033022,0.00019227,2]
[347105563,1735500639959,-2613.70723233,0.00019227,2]
[347105565,1735500639968,-2126.1,0.00019486,2]
[347105567,1735500639977,-500.0,0.00019486,2]
[347105569,1735500639986,-1713.08276767,0.00019759,2]
[347105819,1735500642890,-361.95984905,0.00019759,2]
[347105821,1735500642903,-51.05738328,0.00019759,2]
[347105823,1735500642913,-177.519,0.00019825,2]
[347105825,1735500642922,-500.0,0.00019825,2]
[347105827,1735500642932,-612.84,0.00019825,2]
[347105829,1735500642941,-230.13975345,0.00019825,2]
[347105831,1735500642953,-269.86024655,0.00019825,2]
[347105833,1735500642963,-594.98714591,0.00019825,2]
[347105835,1735500642972,-500.0,0.00019826,2]
[347105837,1735500642981,-500.0,0.00019826,2]
[347105839,1735500642991,-500.0,0.00019826,2]
[347105841,1735500643001,-555.502,0.0001985,2]
[347105843,1735500643010,-835.13004798,0.000199,2]
[347105845,1735500643019,-594.59095311,0.0002,2]
[347106115,1735500645825,-4575.85610058,0.0002,2]
[347106117,1735500645835,-2994.1757685,0.0002,2]
[347106119,1735500645844,-7923.03549997,0.0002,20]
[347106121,1735500645853,-2126.1,0.00020033,2]
[347106123,1735500645862,-500.0,0.00020099,2]
[347106125,1735500645872,-500.0,0.000201,2]
[347106127,1735500645881,-500.0,0.000201,2]
[347106129,1735500645891,-2126.1,0.00020307,2]
[347106131,1735500645901,-500.0,0.00020373,2]
[347106133,1735500645910,-500.0,0.00020374,2]
[347106135,1735500645920,-500.0,0.00020374,2]
[347106137,1735500645930,-400.0,0.00020447,2]
[347106139,1735500645940,-167.79707,0.00020521,2]
[347106140,1735500645949,-2126.1,0.00020581,2]
[347106142,1735500645958,-500.0,0.00020647,2]
[347106144,1735500645968,-500.0,0.00020648,2]
[347106146,1735500645979,-500.0,0.00020648,2]
[347106147,1735500645988,-167.5191322,0.00020678,2]
[347106149,1735500645998,-2000.0,0.000208,2]
[347106151,1735500646007,-217.25284936,0.000208,2]
[347106152,1735500646017,-453.86465756,0.00020812,4]
[347106154,1735500646027,-302.57643834,0.00020812,4]
[347106155,1735500646037,-217.25284933,0.00020836,2]
[347106156,1735500646047,-1000.0,0.00020838,2]
[347106157,1735500646056,-2126.1,0.00020855,2]
[347106158,1735500646065,-217.25284933,0.00020872,2]
[347106159,1735500646075,-286.7672548,0.00020887,2]
[347106160,1735500646084,-23975.05504697,0.000209,30]
[347106167,1735500646189,-323.56061344,0.000209,30]
[347106169,1735500646201,-602.46540731,0.000209,30]
[347106257,1735501832192,-1782.76384642,0.00013288,2]
[347106259,1735501832202,-400.0,0.00013973,2]
[347106261,1735501832212,-500.0,0.00017751,2]
[347106263,1735501832222,-500.0,0.00017751,2]
[347106265,1735501832232,-500.0,0.00017751,2]
[347106267,1735501832242,-625.78,0.00017751,2]
[347106269,1735501832251,-500.0,0.00017751,2]
[347106271,1735501832261,-568.69899948,0.00017751,2]
[347106273,1735501832270,-500.0,0.00017751,2]
[347106275,1735501832279,-500.0,0.00017751,2]
[347106277,1735501832288,-500.0,0.00017751,2]
[347106279,1735501832299,-1886.81,0.00017751,2]
[347106281,1735501832308,-500.0,0.00017751,2]
[347106283,1735501832317,-500.0,0.00017751,2]
[347106285,1735501832327,-240.07717217,0.00017751,2]
[347106287,1735501832336,-500.0,0.00017751,2]
[347106289,1735501832346,-175.16,0.00017751,2]
[347106291,1735501832355,-500.0,0.00017751,2]
[347106293,1735501832364,-500.0,0.00017751,2]
[347106296,1735501832374,-500.0,0.00017751,2]
[347106299,1735501832383,-500.0,0.00017751,2]
[347106302,1735501832392,-500.0,0.00017751,2]
[347106305,1735501832401,-7998.98316496,0.00017751,2]
[347106309,1735501832413,-16901.01683504,0.00017751,2]
[347106312,1735501832423,-500.0,0.00018025,2]
[347106314,1735501832433,-373.62,0.00018025,2]
[347106317,1735501832443,-500.0,0.00018025,2]
[347106320,1735501832452,-522.15969729,0.00018025,2]
[347106324,1735501832462,-500.0,0.00018025,2]
[347106326,1735501832471,-500.0,0.00018025,2]
[347106329,1735501832481,-1886.81,0.00018025,2]
[347106332,1735501832491,-192.3,0.00018025,2]
[347106335,1735501832500,-500.0,0.00018025,2]
[347106338,1735501832509,-500.0,0.00018025,2]
[347106341,1735501832519,-598.11,0.00018025,2]
[347106345,1735501832528,-500.0,0.00018025,2]
[347106347,1735501832537,-500.0,0.00018025,2]
[347106351,1735501832547,-1854.65328726,0.00018098,2]
[347106354,1735501832559,-3310.10427529,0.00018098,2]
[347106356,1735501832568,-500.0,0.00018124,2]
[347106358,1735501832577,-500.0,0.00018124,2]
[347106360,1735501832586,-500.0,0.00018182,2]
[347106362,1735501832595,-500.0,0.00018182,2]
[347106364,1735501832608,-500.0,0.00018299,2]
[347106366,1735501832617,-500.0,0.00018299,2]
[347106368,1735501832626,-500.0,0.00018299,2]
[347106370,1735501832635,-500.0,0.00018299,2]
[347106372,1735501832644,-1886.81,0.00018299,2]
[347106374,1735501832653,-500.0,0.00018299,2]
[347106376,1735501832662,-185.01144457,0.00018299,2]
[347106378,1735501832672,-500.0,0.00018299,2]
[347106379,1735501832681,-500.0,0.000183,2]
[347106381,1735501832690,-500.0,0.00018398,2]
[347106383,1735501832700,-500.0,0.00018456,2]
[347106385,1735501832710,-500.0,0.00018456,2]
[347106387,1735501832719,-500.0,0.00018573,2]
[347106389,1735501832728,-500.0,0.00018573,2]
[347106391,1735501832737,-500.0,0.00018573,2]
[347106393,1735501832747,-500.0,0.00018573,2]
[347106395,1735501832756,-1886.81,0.00018573,2]
[347106397,1735501832765,-313.99007775,0.00018573,2]
[347106927,1735501838131,-122.23992225,0.00018573,2]
[347106929,1735501838142,-500.0,0.00018671,2]
[347106931,1735501838152,-500.0,0.00018672,2]
[347106933,1735501838161,-177.519,0.0001873,2]
[347106935,1735501838170,-500.0,0.0001873,2]
[347106937,1735501838180,-500.0,0.0001873,2]
[347106939,1735501838189,-522.7372654,0.00018847,2]
[347106941,1735501838199,-598.32,0.00018847,2]
[347106943,1735501838208,-500.0,0.00018847,2]
[347106945,1735501838218,-488.29045776,0.00018847,2]
[347106948,1735501838231,-11.70954224,0.00018847,2]
[347106950,1735501838240,-1637.59324676,0.00018847,2]
[347106952,1735501838251,-249.21675324,0.00018847,2]
[347106954,1735501838260,-1370.26088649,0.000189,2]
[347106956,1735501838269,-460.08,0.00018945,2]
[347106958,1735501838278,-500.0,0.00018946,2]
[347106960,1735501838287,-500.0,0.00019004,2]
[347106962,1735501838296,-500.0,0.00019004,2]
[347106964,1735501838306,-394.0,0.00019079,2]
[347106966,1735501838315,-324.84236027,0.00019121,2]
[347106968,1735501838326,-175.15763973,0.00019121,2]
[347106969,1735501838335,-500.0,0.00019121,2]
[347106970,1735501838344,-1886.81,0.00019121,2]
[347106971,1735501838353,-164.984708,0.00019178,2]
[347106972,1735501838362,-249.17,0.0001922,2]
[347106973,1735501838371,-500.0,0.00019278,2]
[347106974,1735501838380,-500.0,0.00019278,2]
[347106975,1735501838393,-500.0,0.00019395,2]
[347106976,1735501838405,-500.0,0.00019395,2]
[347106977,1735501838417,-23.87765227,0.00019395,2]
[347106978,1735501838431,-316.3148958,0.00019395,2]
[347106979,1735501838446,-1103.42372192,0.00019395,2]
[347106980,1735501838460,-443.19373001,0.00019395,2]
[347106981,1735501838470,-500.0,0.00019552,2]
[347106982,1735501838480,-500.0,0.00019552,2]
[347106984,1735501838490,-500.0,0.00019669,2]
[347106986,1735501838503,-1400.65609097,0.00019669,2]
[347106989,1735501838517,-486.15390903,0.00019669,2]
[347106991,1735501838528,-500.0,0.00019826,2]
[347106993,1735501838539,-311.62310996,0.00019826,2]
[347106995,1735501838553,-188.37689004,0.00019826,2]
[347106998,1735501838563,-532.606,0.0001985,2]
[347107000,1735501838575,-500.0,0.00019943,2]
[347107002,1735501838586,-1886.81,0.00019943,2]
[347107004,1735501838597,-500.0,0.0002004,2]
[347107006,1735501838612,-500.0,0.000201,2]
[347107009,1735501838623,-500.0,0.000201,2]
[347107011,1735501838634,-500.0,0.00020216,2]
[347107013,1735501838645,-1886.81,0.00020216,2]
[347107015,1735501838656,-1089.454008,0.000203,2]
[347107017,1735501838668,-500.0,0.00020314,2]
[347107019,1735501838678,-500.0,0.00020374,2]
[347107022,1735501838689,-500.0,0.00020374,2]
[347107024,1735501838700,-400.0,0.00020447,2]
[347107026,1735501838711,-500.0,0.0002049,2]
[347107028,1735501838722,-1886.81,0.0002049,2]
[347107030,1735501838732,-167.79707,0.00020521,2]
[347107032,1735501838743,-500.0,0.00020588,2]
[347107035,1735501838754,-500.0,0.00020648,2]
[347107037,1735501838765,-500.0,0.00020648,2]
[347107039,1735501838776,-492.0,0.000207,9]
[347107041,1735501838787,-500.0,0.00020764,2]
[347107043,1735501838798,-1886.81,0.00020764,2]
[347107046,1735501838808,-2000.0,0.000208,2]
[347107048,1735501838819,-1000.0,0.000208,2]
[347107050,1735501838830,-153.88743495,0.000208,2]
[347107052,1735501838840,-188.0,0.000208,2]
[347107054,1735501838850,-153.88743494,0.00020848,2]
[347107056,1735501838860,-2735.92675779,0.00020862,2]
[347107058,1735501838869,-4271.76773934,0.00020862,2]
[347107200,1735501840182,-3250.0,0.00020862,2]
[347107202,1735501840196,-3305.84805776,0.00020862,2]
[347107204,1735501840210,-18180.63704117,0.00020862,2]
[347107207,1735501840224,-14002.35111282,0.00020862,2]
[347107209,1735501840235,-500.0,0.00020862,2]
[347107211,1735501840247,-187.55528289,0.00020886,2]
[347107214,1735501840259,-153.88743494,0.00020896,2]
[347107216,1735501840269,-11212.84410632,0.000209,30]
[347107218,1735501840282,-3799.50864998,0.000209,30]
[347107515,1735501843148,-2180.69265398,0.000209,30]
[347107518,1735501843164,-88203.1593632,0.000209,30]
[347107520,1735501843175,-514.17,0.000209,2]
[347107522,1735501843186,-1862.89,0.000209,2]
[347107524,1735501843197,-1342.59,0.000209,2]
[347107526,1735501843207,-1200.0,0.000209,2]
[347107528,1735501843216,-616.88,0.00020922,2]
[347107530,1735501843226,-500.0,0.00020922,2]
[347107532,1735501843237,-153.88743494,0.00020944,2]
[347107534,1735501843247,-6419.11525187,0.00020944,2]
[347107536,1735501843257,-154.09305379,0.00020944,7]
[347107539,1735501843267,-154.09305379,0.00020944,7]
[347107541,1735501843278,-154.09305379,0.00020944,7]
[347107543,1735501843289,-154.09305379,0.00020944,7]
[347107545,1735501843299,-154.09305379,0.00020944,7]
[347107547,1735501843309,-154.09305379,0.00020944,7]
[347107549,1735501843319,-154.09305379,0.00020944,7]
[347107551,1735501843328,-154.09305379,0.00020944,7]
[347107553,1735501843338,-154.09305379,0.00020944,7]
[347107555,1735501843348,-154.09305379,0.00020944,7]
[347107558,1735501843358,-154.09305379,0.00020944,7]
[347107561,1735501843379,-154.09305379,0.00020944,7]
[347107563,1735501843394,-154.09305379,0.00020944,7]
[347107566,1735501843406,-154.09305379,0.00020944,7]
[347107568,1735501843419,-154.09305379,0.00020944,7]
[347107570,1735501843431,-154.09,0.00020944,7]
[347107573,1735501843442,-184.91166455,0.00020944,7]
[347107575,1735501843454,-184.91166455,0.00020944,7]
[347107577,1735501843465,-184.91166455,0.00020944,7]
[347107579,1735501843476,-184.91166455,0.00020944,7]
[347107582,1735501843487,-184.91166455,0.00020944,7]
[347107584,1735501843498,-184.91166455,0.00020944,7]
[347107586,1735501843508,-184.91166455,0.00020944,7]
[347107588,1735501843519,-184.91166455,0.00020944,7]
[347107590,1735501843530,-184.91166455,0.00020944,7]
[347107592,1735501843540,-184.91166455,0.00020944,7]
[347107595,1735501843552,-184.91166455,0.00020944,7]
[347107597,1735501843562,-184.91166455,0.00020944,7]
[347107599,1735501843573,-184.91166455,0.00020944,7]
[347107601,1735501843584,-184.91166455,0.00020944,7]
[347107603,1735501843595,-184.91166455,0.00020944,7]
[347107605,1735501843607,-184.91166455,0.00020944,7]
[347107607,1735501843618,-184.91166455,0.00020944,7]
[347107610,1735501843628,-184.91166455,0.00020944,7]
[347107612,1735501843638,-184.91166455,0.00020944,7]
[347107614,1735501843650,-184.91,0.00020944,7]
[347107630,1735501843788,-988.87303276,0.00020944,7]
[347107632,1735501843797,-988.87303276,0.00020944,7]
[347107634,1735501843807,-988.87303276,0.00020944,7]
[347107636,1735501843816,-988.87303276,0.00020944,7]
[347107638,1735501843825,-988.87303276,0.00020944,7]
[347107640,1735501843834,-988.87303276,0.00020944,7]
[347107642,1735501843843,-988.87303276,0.00020944,7]
[347107644,1735501843852,-988.87303276,0.00020944,7]
[347107646,1735501843861,-988.87303276,0.00020944,7]
[347107648,1735501843870,-988.87303276,0.00020944,7]
[347107650,1735501843879,-988.87303276,0.00020944,7]
[347107652,1735501843889,-988.87303276,0.00020944,7]
[347107654,1735501843898,-988.87303276,0.00020944,7]
[347107656,1735501843907,-988.87303276,0.00020944,7]
[347107658,1735501843916,-988.87303276,0.00020944,7]